bitfinex-derivatives/quotes_BNBF0:USTF0_20250331
["timestamp","ask_amount","ask_price","bid_price","bid_amount"]
[1743395654517,0.82734935,601.0,600.08,0.33328889]
[1743395654716,5.84335474,601.01,600.08,0.33328889]
[1743395654917,3.7453223,601.0,600.08,0.33328889]
[1743395655117,3.69245132,600.99,600.08,0.33328889]
[1743395655319,1.95014659,600.98,600.08,0.33328889]
[1743395655618,5.64259791,600.98,600.08,0.33328889]
[1743395655918,0.82734935,600.97,600.08,0.33328889]
[1743395656117,4.51980067,600.97,600.08,0.33328889]
[1743395656317,0.82734935,600.96,600.08,0.33328889]
[1743395656514,4.51980067,600.96,600.08,0.33328889]
[1743395656723,0.82734935,600.95,600.09,0.28783035]
[1743395657019,1.95014659,600.95,600.1,0.33327778]
[1743395657219,3.37040584,600.95,600.1,0.33327778]
[1743395657520,2.2476086,600.94,600.1,0.33327778]
[1743395658121,5.84291713,601.21,600.1,0.33327778]
[1743395658320,6.14886429,601.2,600.1,0.33327778]
[1743395658521,9.06649006,601.19,600.1,0.33327778]
[1743395658723,0.99421318,601.16,600.11,0.28782594]
[1743395658923,1.72620641,601.15,600.11,0.62109817]
[1743395659119,2.84900365,601.14,600.12,0.28782594]
[1743395659320,1.72620641,601.13,600.12,0.28782594]
[1743395659521,1.72620641,601.12,600.12,0.28782594]
[1743395659716,1.72620641,601.11,600.12,0.28782594]
[1743395659921,1.72620641,601.1,600.12,0.28782594]
[1743395660218,1.72620641,601.09,600.12,0.28782594]
[1743395660421,0.30594716,601.08,600.12,0.28782594]
[1743395660620,9.06649006,601.09,600.12,0.28782594]
[1743395660820,6.14886429,601.08,600.12,0.28782594]
[1743395661117,5.66424057,601.07,600.12,0.28782594]
[1743395661318,6.14886429,601.06,600.12,0.28782594]
[1743395661517,2.45641774,601.05,600.12,0.28782594]
[1743395661720,0.30594716,601.04,600.12,0.28782594]
[1743395661918,2.57752741,601.04,600.12,0.28782594]
[1743395662124,0.82712038,601.05,600.12,0.28782594]
[1743395662319,0.30594857,601.04,600.12,0.28782594]
[1743395662519,0.30594857,601.06,600.12,0.28782594]
[1743395662926,0.30594751,601.05,600.13,0.28774509]
[1743395663224,0.30594751,601.06,600.12,0.28774509]
[1743395663424,0.30594751,601.05,600.13,0.28774509]
[1743395663625,0.30594751,601.06,600.12,0.28774509]
[1743395664024,0.28980559,601.04,600.12,0.28774509]
[1743395665029,0.28980559,601.04,600.11,0.33327223]
[1743395665522,2.44025618,601.04,600.11,0.33327223]
[1743395665920,6.13146563,601.04,600.11,0.33327223]
[1743395666120,2.15045059,601.03,600.11,0.33327223]
[1743395666323,8.75928581,601.03,600.11,0.33327223]
[1743395666523,5.84166004,601.02,600.11,0.33327223]
[1743395666719,2.15045059,601.01,600.11,0.33327223]
[1743395666925,4.0345386,601.01,600.11,0.33327223]
[1743395667126,3.69120945,601.0,600.11,0.33327223]
[1743395667328,0.82709638,600.99,600.11,0.33327223]
[1743395667627,1.82109638,600.99,600.11,0.33327223]
[1743395667827,2.94389362,600.99,600.11,0.33327223]
[1743395668126,8.4299316,600.99,600.11,0.33327223]
[1743395668429,7.4359316,600.98,600.11,0.33327223]
[1743395668727,4.51830583,600.97,600.11,0.33327223]
[1743395668927,5.16306856,600.96,600.11,0.33327223]
[1743395669226,2.24678043,600.95,600.11,0.33327223]
[1743395669634,1.41968405,600.97,600.11,0.33327223]
[1743395670136,4.51830173,600.97,600.11,0.33327223]
[1743395670438,3.36842971,600.96,600.11,0.33327223]
[1743395670630,2.24678043,600.95,600.11,0.33327223]
[1743395670831,0.82709638,600.95,600.11,0.33327223]
[1743395671034,0.28992752,600.95,600.11,0.33327223]
[1743395672137,0.994,600.99,600.12,0.28784384]
[1743395672535,0.994,600.99,600.13,0.33326112]
[1743395673233,0.994,600.99,600.14,0.2878235]
[1743395673633,0.994,600.99,600.15,0.33325002]
[1743395674238,0.994,600.99,600.16,0.28781413]
[1743395674437,0.994,600.99,600.17,0.33323891]
[1743395674638,0.994,600.99,600.18,0.28781413]
[1743395674837,0.994,600.99,600.19,0.33322781]
[1743395678734,0.994,600.99,600.2,0.28781642]
[1743395681735,0.994,600.99,600.2,0.62103867]
[1743395681933,0.994,600.99,600.21,0.28781642]
[1743395689342,0.994,600.99,600.2,0.33322225]
[1743395689543,0.994,600.99,600.21,0.28805222]
[1743395690248,0.994,600.99,600.22,0.28807786]
[1743395690548,0.994,600.99,600.23,0.28807786]
[1743395690749,0.994,600.99,600.21,0.28807786]
[1743395690953,0.994,600.99,600.2,0.33322225]
[1743395690954,0.994,600.99,600.24,0.28807786]
[1743395691250,0.994,600.99,600.25,0.28807786]
[1743395691451,0.994,600.99,600.21,0.28807786]
[1743395691650,1.11775476,601.02,600.21,0.28807786]
[1743395692150,4.03491786,601.02,600.2,0.33322225]
[1743395692351,1.42128081,601.01,600.21,0.2880128]
[1743395692552,1.42128081,601.01,600.22,0.33321115]
[1743395692751,1.42128081,601.01,600.23,0.2880128]
[1743395692951,0.28978025,601.02,600.23,0.6212184]
[1743395693152,0.28978025,601.02,600.24,0.2880128]
[1743395693753,5.84790022,601.19,600.24,0.2880128]
[1743395693949,5.84790022,601.18,600.24,0.2880128]
[1743395694254,0.28974406,601.05,600.24,0.2880128]
[1743395694553,8.76506332,601.16,600.24,0.2880128]
[1743395694749,0.751,601.04,600.24,0.2880128]
[1743395695752,0.751,601.04,600.23,0.3332056]
[1743395695952,0.751,601.04,600.24,0.28800712]
[1743395696454,0.751,601.04,600.25,0.3331945]
[1743395696855,0.751,601.04,600.26,0.28790851]
[1743395697250,0.751,601.04,600.27,0.3331834]
[1743395697449,0.751,601.04,600.28,0.28790851]
[1743395697849,0.751,601.04,600.29,0.3331723]
[1743395698152,0.751,601.04,600.3,0.28790851]
[1743395698355,0.751,601.04,600.31,0.3331612]
[1743395712969,0.751,601.04,600.32,0.2877387]
[1743395713271,0.751,601.04,600.33,0.3331501]
[1743395713670,0.751,601.04,600.34,0.2877387]
[1743395714063,0.751,601.04,600.35,0.333139]
[1743395714264,0.751,601.04,600.36,0.2877387]
[1743395714468,0.751,601.04,600.37,0.3331279]
[1743395714665,0.751,601.04,600.38,0.2877387]
[1743395714973,0.751,601.04,600.39,0.3331168]
[1743395715271,0.751,601.04,600.4,0.2877387]
[1743395715966,0.751,601.04,600.41,0.33310571]
[1743395716167,0.751,601.04,600.42,0.2877387]
[1743395716374,0.751,601.04,600.42,0.62083886]
[1743395716573,0.751,601.04,600.43,0.2877387]
[1743395717167,0.751,601.04,600.42,0.33310016]
[1743395717365,0.751,601.04,600.43,0.28783721]
[1743395717570,0.751,601.04,600.42,0.33310016]
[1743395730074,0.751,601.04,600.13,0.28986352]
[1743395730274,0.751,601.04,600.14,0.28795165]
[1743395730474,2.17085818,601.04,599.5,0.28795165]
[1743395730675,2.17085818,601.04,599.52,0.33360021]
[1743395730880,2.17085818,601.04,599.53,0.28795165]
[1743395731180,0.751,601.04,599.55,0.33358352]
[1743395731377,0.751,601.04,599.56,0.28795165]
[1743395731574,0.751,601.04,599.58,0.33356683]
[1743395731782,0.751,601.04,599.59,0.28795165]
[1743395732082,0.751,601.04,599.61,0.33355014]
[1743395732283,0.751,601.04,599.62,0.28795165]
[1743395732481,0.751,601.04,599.64,0.33353345]
[1743395732677,0.751,601.04,599.65,0.28795165]
[1743395732881,2.17085818,601.04,599.67,0.33351676]
[1743395733076,4.44263128,601.04,599.68,0.28795165]
[1743395733287,4.51878505,601.03,599.7,0.33350008]
[1743395733481,7.43358329,601.02,599.71,0.28795165]
[1743395733683,4.51878505,601.01,599.73,0.3334834]
[1743395733879,4.51878505,601.01,599.74,0.28795165]
[1743395733880,0.82715377,601.0,599.74,0.28795165]
[1743395734083,3.74195201,601.0,599.76,0.33346672]
[1743395734385,3.69163128,600.99,599.77,0.28795165]
[1743395734582,0.82715377,600.98,599.79,0.33345004]
[1743395734782,1.94880305,600.98,599.8,0.28795165]
[1743395734980,5.64120634,600.98,599.82,0.33343336]
[1743395735181,1.9489664,600.97,599.83,0.28795165]
[1743395735380,3.36905868,600.97,599.85,0.33341668]
[1743395735584,1.42009228,600.96,599.85,0.33341668]
[1743395735788,4.51935527,601.02,599.86,0.28795165]
[1743395735980,4.51935527,601.01,599.88,0.33340001]
[1743395736186,7.43601992,601.0,599.89,0.28795165]
[1743395736487,4.51935527,600.99,599.91,0.33338334]
[1743395736682,1.94890906,600.98,599.92,0.28795165]
[1743395736882,3.36900134,600.98,599.94,0.33336667]
[1743395737087,1.42009228,600.97,599.95,0.28795165]
[1743395737287,0.28983093,600.97,599.96,0.33335555]
[1743395737486,0.28983093,600.97,599.97,0.28795165]
[1743395737683,0.28983093,600.97,599.98,0.62137518]
[1743395737885,0.28983093,600.97,599.99,0.62136962]
[1743395738182,0.28983093,600.97,600.0,0.62136407]
[1743395738482,0.28983093,600.97,600.01,0.62135851]
[1743395738683,0.28983093,600.97,600.02,0.62135296]
[1743395738884,0.28983093,600.97,600.03,0.6213474]
[1743395739086,0.28983093,600.97,600.04,0.62134185]
[1743395739285,0.28983093,600.97,600.05,0.62133629]
[1743395739486,0.28983093,600.97,600.05,0.33330555]
[1743395739682,0.28983093,600.97,600.06,0.28802332]
[1743395739888,0.28983093,600.97,600.07,0.33329444]
[1743395740087,0.28983093,600.97,600.08,0.28802332]
[1743395740289,0.28983093,600.97,600.09,0.33328334]
[1743395740590,0.28983093,600.97,600.1,0.28802332]
[1743395740788,0.28983093,600.97,600.11,0.33327223]
[1743395741000,0.28983093,600.97,600.12,0.28802332]
[1743395741194,0.28983093,600.97,600.13,0.33326112]
[1743395741399,0.28983093,600.97,600.14,0.28802332]
[1743395741598,0.28983093,600.97,600.15,0.33325002]
[1743395741793,0.28983093,600.97,600.16,0.28802332]
[1743395741997,0.28983093,600.97,600.17,0.33323891]
[1743395742198,0.28983093,600.97,600.18,0.28802332]
[1743395742398,0.28983093,600.97,600.18,0.62125668]
[1743395742594,0.28983093,600.97,600.19,0.28802332]
[1743395743900,2.54174156,601.01,600.19,0.28802332]
[1743395744100,1.12164928,601.01,600.19,0.28802332]
[1743395744492,1.42009228,601.03,600.19,0.28802332]
[1743395744697,0.751,601.04,600.18,0.33323336]
[1743395744896,0.751,601.04,600.19,0.287763]
[1743395745500,0.751,601.04,600.18,0.33323336]
[1743395745698,0.751,601.04,600.19,0.2877039]
[1743395746604,0.751,601.04,600.2,0.33322225]
[1743395746802,0.751,601.04,600.21,0.2877039]
[1743395746995,0.751,601.04,600.22,0.33321115]
[1743395747198,0.751,601.04,600.23,0.2877039]
[1743395747396,0.751,601.04,600.24,0.28773514]
[1743395747696,0.751,601.04,600.23,0.28773514]
[1743395747904,0.751,601.04,600.24,0.28773514]
[1743395748102,0.751,601.04,600.23,0.28773514]
[1743395749097,0.751,601.04,600.24,0.33320005]
[1743395749299,0.751,601.04,600.25,0.28773514]
[1743395749501,0.751,601.04,600.26,0.33318895]
[1743395749701,0.751,601.04,600.27,0.28773514]
[1743395750004,0.751,601.04,600.28,0.33317785]
[1743395750505,0.751,601.04,600.29,0.28773514]
[1743395750803,6.48458472,601.31,600.3,0.33316674]
[1743395751004,5.83935776,601.3,600.31,0.28773514]
[1743395751197,3.74264165,601.29,600.31,0.28773514]
[1743395751402,3.6898674,601.28,600.32,0.33315565]
[1743395751604,4.51648551,601.27,600.33,0.28773514]
[1743395751798,4.51648551,601.26,600.34,0.33314455]
[1743395752003,4.51648551,601.25,600.35,0.28773514]
[1743395752203,0.82672706,601.24,600.36,0.33313345]
[1743395752400,0.82672706,601.24,600.37,0.28773514]
[1743395752603,3.74264165,601.24,600.38,0.33312235]
[1743395752801,1.41913786,601.23,600.39,0.28773514]
[1743395753004,1.41913786,601.23,600.4,0.33311125]
[1743395753201,2.91591459,601.24,600.41,0.28773514]
[1743395753407,2.91591459,601.24,600.42,0.33310016]
[1743395753606,1.41913786,601.25,600.42,0.33310016]
[1743395753906,5.83849464,601.56,600.43,0.28769907]
[1743395754106,0.28969341,601.28,600.44,0.33308906]
[1743395754602,5.83787758,601.53,600.44,0.33308906]
[1743395754806,1.062,601.27,600.44,0.33308906]
[1743395756805,1.062,601.27,600.45,0.28777457]
[1743395757007,1.062,601.27,600.44,0.33308906]
[1743395758103,0.28980076,601.26,600.44,0.33308906]
[1743395758706,0.28980076,601.26,600.45,0.28775674]
[1743395758905,0.28980076,601.26,600.46,0.33307797]
[1743395759399,0.28980076,601.26,600.47,0.28773107]
[1743395759803,1.062,601.27,600.47,0.28773107]
[1743395760900,1.062,601.27,600.48,0.28773647]
[1743395761103,1.062,601.27,600.46,0.33307797]
[1743395761304,1.062,601.27,600.47,0.28768583]
[1743395762105,1.062,601.27,600.46,0.33307797]
[1743395762306,1.062,601.27,600.47,0.28769911]
[1743395767706,1.062,601.27,600.48,0.28781089]
[1743395767907,1.062,601.27,600.49,0.28781089]
[1743395768101,1.062,601.27,600.5,0.28781089]
[1743395768308,1.062,601.27,600.51,0.28781089]
[1743395768508,1.062,601.27,600.52,0.28781089]
[1743395768702,1.062,601.27,600.53,0.28781089]
[1743395768907,1.062,601.27,600.54,0.28781089]
[1743395769209,1.062,601.27,600.55,0.28781089]
[1743395769405,1.062,601.27,600.47,0.28781089]
[1743395769707,1.062,601.27,600.48,0.28773048]
[1743395769907,1.062,601.27,600.47,0.28773048]
[1743395770109,1.062,601.27,600.48,0.28773048]
[1743395770310,1.062,601.27,600.47,0.28773048]
[1743395770503,1.062,601.27,600.48,0.28773048]
[1743395770704,1.062,601.27,600.47,0.28773048]
[1743395770903,1.062,601.27,600.48,0.28773048]
[1743395771103,1.062,601.27,600.49,0.28778898]
[1743395771508,1.062,601.27,600.5,0.28778898]
[1743395771810,1.062,601.27,600.47,0.28778898]
[1743395772010,1.062,601.27,600.46,0.33307797]
[1743395772011,1.062,601.27,600.48,0.28778898]
[1743395772212,1.062,601.27,600.47,0.28778898]
[1743395777813,1.062,601.27,600.46,0.33307797]
[1743395785820,0.28965603,601.28,600.46,0.33307797]
[1743395786221,5.832323,601.49,600.46,0.33307797]
[1743395786414,5.832323,601.48,600.46,0.33307797]
[1743395786618,5.832323,601.47,600.46,0.33307797]
[1743395786815,5.832323,601.46,600.46,0.33307797]
[1743395787018,2.14694662,601.45,600.46,0.33307797]
[1743395787220,3.73862516,601.45,600.46,0.33307797]
[1743395787522,3.68537638,601.44,600.46,0.33307797]
[1743395787722,5.832323,601.44,600.46,0.33307797]
[1743395788023,3.26735829,601.43,600.46,0.33307797]
[1743395788219,6.95273467,601.43,600.46,0.33307797]
[1743395788417,5.832323,601.42,600.46,0.33307797]
[1743395788616,2.14694662,601.41,600.46,0.33307797]
[1743395789021,5.05982308,601.41,600.46,0.33307797]
[1743395789218,3.68537638,601.4,600.46,0.33307797]
[1743395789418,5.832323,601.4,600.46,0.33307797]
[1743395789628,2.14694662,601.39,600.46,0.33307797]
[1743395789818,3.73862516,601.39,600.46,0.33307797]
[1743395790018,3.68537638,601.38,600.46,0.33307797]
[1743395790223,1.12041167,601.37,600.46,0.33307797]
[1743395790423,1.72329928,601.36,600.46,0.33307797]
[1743395790628,2.84371095,601.35,600.46,0.33307797]
[1743395790824,2.7154326,601.34,600.46,0.33307797]
[1743395791025,2.84371095,601.33,600.46,0.33307797]
[1743395791226,1.72329928,601.32,600.46,0.33307797]
[1743395791521,1.72329928,601.31,600.46,0.33307797]
[1743395791726,1.72329928,601.3,600.46,0.33307797]
[1743395791922,1.72329928,601.29,600.46,0.33307797]
[1743395792130,1.72329928,601.28,600.46,0.33307797]
[1743395792327,1.72464288,601.27,600.46,0.33307797]
[1743395792527,1.72464288,601.26,600.46,0.33307797]
[1743395792728,1.72464288,601.25,600.46,0.33307797]
[1743395792926,1.41879605,601.24,600.46,0.33307797]
[1743395793126,1.72464288,601.23,600.46,0.33307797]
[1743395793320,1.72464288,601.22,600.46,0.33307797]
[1743395793527,1.72464288,601.21,600.18,0.28980559]
[1743395793728,1.72464288,601.2,600.19,0.28823631]
[1743395793929,1.72464288,601.19,600.19,0.28823631]
[1743395794124,0.30584683,601.18,600.19,0.28823631]
[1743395794322,6.14166318,601.18,600.19,0.28823631]
[1743395794531,2.45279345,601.17,600.19,0.28823631]
[1743395794923,0.30584683,601.16,600.19,0.28823631]
[1743395795327,1.13159553,601.16,600.19,0.28823631]
[1743395795529,0.30584683,601.15,600.19,0.28823631]
[1743395795724,2.45279345,601.15,600.19,0.28823631]
[1743395795924,0.30584683,601.14,600.19,0.28823631]
[1743395796126,2.45279345,601.14,599.54,0.28823631]
[1743395796328,0.30584683,601.13,599.56,0.33357795]
[1743395796626,2.45279345,601.13,599.57,0.28823631]
[1743395796829,5.05982308,601.13,599.59,0.33356126]
[1743395797130,4.28463385,601.12,599.6,0.28823631]
[1743395797327,2.14694662,601.11,599.62,0.33354457]
[1743395797530,5.05982308,601.11,599.63,0.28823631]
[1743395797726,3.68886973,601.1,599.65,0.33352789]
[1743395798031,1.12041167,601.09,599.66,0.28823631]
[1743395798333,6.95696395,601.09,599.68,0.3335112]
[1743395798531,5.83655228,601.08,599.69,0.28795539]
[1743395798730,5.83655228,601.07,599.7,0.28795539]
[1743395798930,0.8257487,601.06,599.71,0.28795539]
[1743395799230,5.83831748,601.07,599.72,0.62144435]
[1743395799530,0.8257487,601.06,599.74,0.33347784]
[1743395799730,2.91287646,601.06,599.75,0.28795539]
[1743395799926,7.42823082,601.06,599.77,0.33346116]
[1743395800126,4.51640589,601.05,599.78,0.28795539]
[1743395800331,0.82672784,601.04,599.8,0.33344448]
[1743395800528,4.51640589,601.04,599.81,0.28795539]
[1743395800731,3.68967805,601.04,599.83,0.3334278]
[1743395800930,2.53951861,601.03,599.84,0.28795539]
[1743395801132,0.28981645,601.07,599.86,0.33341112]
[1743395801326,0.28981645,601.07,599.87,0.28795539]
[1743395801525,0.28981645,601.07,599.89,0.33339445]
[1743395801730,0.28981645,601.07,599.9,0.28795539]
[1743395801931,1.41910694,601.2,599.92,0.33337778]
[1743395802131,1.41924678,601.19,599.92,0.33337778]
[1743395802432,1.72516749,601.18,599.93,0.28795539]
[1743395802631,1.12128699,601.19,599.95,0.33336111]
[1743395802632,1.72516749,601.17,599.95,0.33336111]
[1743395802926,0.30592071,601.16,599.96,0.28795539]
[1743395803333,0.30592071,601.16,599.98,0.33334444]
[1743395803531,5.37099564,601.16,599.99,0.28795539]
[1743395803733,6.14569111,601.15,599.99,0.28795539]
[1743395803934,2.45564947,601.14,599.99,0.28795539]
[1743395804131,0.30592071,601.13,599.99,0.28795539]
[1743395804433,0.30592071,601.13,600.0,0.33333333]
[1743395804632,1.13275311,601.13,600.01,0.28795539]
[1743395804828,0.30592071,601.12,600.02,0.33332222]
[1743395805033,2.45568495,601.12,600.03,0.28795539]
[1743395805333,0.30592071,601.11,600.04,0.33331111]
[1743395805532,1.13275311,601.11,600.05,0.28795539]
[1743395805734,0.30592071,601.1,600.06,0.3333]
[1743395805934,6.43479403,601.1,600.07,0.28795539]
[1743395806235,6.14497999,601.09,600.08,0.33328889]
[1743395806437,6.14497999,601.08,600.09,0.28795539]
[1743395806638,2.14976424,601.07,600.09,0.28795539]
[1743395806829,0.8268324,601.07,600.09,0.28795539]
[1743395807034,3.74217857,601.07,600.09,0.28795539]
[1743395807328,3.68929504,601.06,600.08,0.33328889]
[1743395807534,5.83905928,601.06,600.08,0.33328889]
[1743395807735,3.27105123,601.05,600.08,0.33328889]
[1743395807929,6.96034627,601.05,600.08,0.33328889]
[1743395808133,5.83905928,601.04,600.08,0.33328889]
[1743395808329,5.83905928,601.03,600.08,0.33328889]
[1743395808537,2.91534617,601.03,600.08,0.33328889]
[1743395808735,0.28994684,601.02,600.08,0.33328889]
[1743395808931,1.7079708,601.02,600.08,0.33328889]
[1743395809437,0.28994684,601.02,600.08,0.33328889]
[1743395813942,2.14561595,601.09,600.08,0.33328889]
[1743395814142,0.28983938,601.01,600.08,0.33328889]
[1743395814441,3.68286154,601.08,600.08,0.33328889]
[1743395814642,5.82847749,601.08,600.08,0.33328889]
[1743395814842,2.14561595,601.07,600.08,0.33328889]
[1743395815042,3.74058307,601.07,600.08,0.33328889]
[1743395815343,3.68286154,601.06,600.08,0.33328889]
[1743395815543,5.82847749,601.06,600.08,0.33328889]
[1743395815743,2.14561595,601.05,600.08,0.33328889]
[1743395815943,3.73417989,601.05,600.08,0.33328889]
[1743395816142,3.68286154,601.04,600.08,0.33328889]
[1743395816444,5.82711987,601.04,600.08,0.33328889]
[1743395816643,1.94393898,601.03,600.08,0.33328889]
[1743395816845,5.62594128,601.03,600.08,0.33328889]
[1743395817046,0.82504522,601.02,600.08,0.33328889]
[1743395817247,6.11684743,601.02,600.08,0.33328889]
[1743395817449,1.13101862,601.01,600.09,0.28804225]
[1743395817642,0.3059734,601.0,600.09,0.28804225]
[1743395817843,1.13084949,601.0,600.09,0.28804225]
[1743395818148,0.3059734,600.99,600.09,0.28804225]
[1743395818346,0.82487609,600.99,600.09,0.28804225]
[1743395818545,4.50611942,600.99,600.09,0.28804225]
[1743395818743,3.73399987,600.98,600.08,0.33328889]
[1743395818946,3.68124333,600.97,600.09,0.28800598]
[1743395819149,1.11889376,600.96,600.09,0.28800598]
[1743395820052,4.50532814,600.99,600.09,0.28800598]
[1743395820053,0.893,600.95,600.09,0.28800598]
[1743395820352,1.18283697,600.95,600.09,0.28800598]
[1743395821056,2.30173073,600.95,600.09,0.28800598]
[1743395821351,6.80707196,600.95,600.09,0.28800598]
[1743395821551,1.41561562,600.94,600.09,0.28800598]
[1743395821748,1.11889376,600.94,600.09,0.28800598]
[1743395822355,1.18283697,600.95,600.09,0.28800598]
[1743395822757,0.893,600.95,600.08,0.33328889]
[1743395823461,0.2899251,600.94,600.08,0.33328889]
[1743395828757,0.893,600.95,600.08,0.33328889]
[1743395829662,0.893,600.95,600.09,0.28774994]
[1743395829863,0.893,600.95,600.1,0.33327778]
[1743395830263,0.893,600.95,600.11,0.28772597]
[1743395830458,0.893,600.95,600.12,0.33326667]
[1743395830662,0.893,600.95,600.13,0.28772597]
[1743395830862,0.893,600.95,600.12,0.33326667]
[1743395831357,0.893,600.95,600.13,0.28775889]
[1743395831559,0.893,600.95,600.14,0.33325557]
[1743395831757,0.893,600.95,600.15,0.28775889]
[1743395832064,0.893,600.95,600.16,0.33324446]
[1743395832258,0.893,600.95,600.17,0.28775889]
[1743395832465,0.893,600.95,600.18,0.33323336]
[1743395832766,0.893,600.95,600.19,0.28775889]
[1743395832966,0.893,600.95,600.2,0.33322225]
[1743395838073,0.893,600.95,600.21,0.28784321]
[1743395838374,0.893,600.95,599.34,2.53489445]
[1743395838375,0.893,600.95,600.22,0.6210536]
[1743395838575,0.893,600.95,600.23,0.62104805]
[1743395838774,0.893,600.95,600.24,0.6210425]
[1743395838975,0.893,600.95,600.25,0.62103695]
[1743395839176,0.893,600.95,599.32,2.53489445]
[1743395839177,0.893,600.95,600.26,0.6210314]
[1743395839375,0.893,600.95,600.27,0.62102585]
[1743395839675,0.893,600.95,600.28,0.6210203]
[1743395839872,0.893,600.95,600.29,0.28784245]
[1743395844174,0.893,600.95,600.29,0.62101475]
[1743395844381,0.893,600.95,600.3,0.28784245]
[1743395844684,0.893,600.95,600.31,0.3331612]
[1743395844877,0.893,600.95,600.32,0.28784245]
[1743395845081,0.893,600.95,600.33,0.3331501]
[1743395845283,0.893,600.95,600.34,0.28784245]
[1743395845485,0.893,600.95,600.35,0.333139]
[1743395845784,0.893,600.95,600.36,0.28763789]
[1743395845978,0.893,600.95,600.37,0.3331279]
[1743395854088,1.18281162,600.95,600.37,0.3331279]
[1743395855992,0.893,600.95,600.37,0.3331279]
[1743395857287,1.18289974,600.95,600.37,0.3331279]
[1743395858893,0.893,600.95,600.37,0.3331279]
[1743395860188,1.18289733,600.95,600.37,0.3331279]
[1743395861895,0.893,600.95,600.37,0.3331279]
[1743395863295,1.18289612,600.95,600.37,0.3331279]
[1743395863896,2.30138098,600.95,600.37,0.3331279]
[1743395864100,3.72241127,600.95,600.37,0.3331279]
[1743395864392,1.42103029,600.94,600.37,0.3331279]
[1743395864598,1.18289612,600.95,600.37,0.3331279]
[1743395867903,0.893,600.95,600.37,0.3331279]
[1743395895733,0.893,600.95,600.38,0.28742184]
[1743395896432,0.893,600.95,600.39,0.3331168]
[1743395897633,0.893,600.95,600.4,0.28731294]
[1743395897832,0.893,600.95,600.41,0.33310571]
[1743395905237,0.893,600.95,600.42,0.28732037]
[1743395906338,0.893,600.95,600.43,0.33309461]
[1743395906538,0.893,600.95,600.44,0.28732037]
[1743395907139,0.893,600.95,600.45,0.33308352]
[1743395907339,0.893,600.95,600.46,0.28732037]
[1743395908739,0.893,600.95,600.47,0.33307242]
[1743395908942,0.893,600.95,600.48,0.28732037]
[1743395909142,0.893,600.95,600.49,0.33306133]
[1743395909343,0.893,600.95,600.5,0.28732037]
[1743395909943,0.893,600.95,600.51,0.33305024]
[1743395910143,0.893,600.95,600.52,0.28732037]
[1743395910344,0.28965121,601.43,600.52,0.28732037]
[1743395911143,0.28965121,601.43,600.53,0.33303914]
[1743395911339,0.28965121,601.43,600.54,0.28732037]
[1743395911745,0.28965121,601.43,600.55,0.33302805]
[1743395911942,0.28965121,601.43,600.56,0.28732037]
[1743395912140,0.28965121,601.43,600.57,0.33301696]
[1743395912346,0.28965121,601.43,600.58,0.28732037]
[1743395912546,0.28965121,601.43,600.59,0.33300587]
[1743395912744,0.28965121,601.43,600.6,0.28732037]
[1743395913048,5.05493438,601.69,600.6,0.28732037]
[1743395913245,3.98799834,601.68,600.6,0.28732037]
[1743395913441,5.05493438,601.69,600.61,0.33299478]
[1743395913442,0.28954999,601.43,600.61,0.33299478]
[1743395913645,5.81906105,601.66,600.62,0.28732037]
[1743395913943,5.81906105,601.65,600.62,0.28732037]
[1743395914141,2.14189152,601.64,600.62,0.28732037]
[1743395914341,3.73512867,601.64,600.62,0.28732037]
[1743395914543,3.67716953,601.63,600.62,0.28732037]
[1743395914743,5.81843582,601.63,600.62,0.28732037]
[1743395914946,5.05298626,601.62,600.62,0.28732037]
[1743395915147,3.6767738,601.61,600.62,0.62030961]
[1743395915342,1.94345625,601.6,600.62,0.33298924]
[1743395915548,2.53388386,601.6,600.63,0.28723736]
[1743395915743,1.11974009,601.6,600.63,0.28723736]
[1743395915948,1.41414377,601.63,600.63,0.28723736]
[1743395916148,0.952,601.67,600.63,0.28723736]
[1743395916149,1.41414377,601.65,600.63,0.28723736]
[1743395916346,0.952,601.67,600.63,0.28723736]
[1743395917150,1.24149098,601.67,600.63,0.28723736]
[1743395918652,1.24149098,601.67,600.65,0.33297261]
[1743395918955,0.952,601.67,600.66,0.28723736]
[1743395919151,0.952,601.67,600.68,0.33295598]
[1743395919347,0.952,601.67,600.69,0.28723736]
[1743395919653,0.952,601.67,600.7,0.33294489]
[1743395919850,0.952,601.67,600.71,0.28723736]
[1743395920048,0.952,601.67,600.72,0.33293381]
[1743395920248,0.952,601.67,600.73,0.28723736]
[1743395920552,0.952,601.67,600.74,0.33292272]
[1743395920749,0.952,601.67,600.75,0.28723736]
[1743395921349,0.952,601.67,600.76,0.33291164]